bitfinex/quotes_BTCUSD_20240927
["timestamp","ask_amount","ask_price","bid_price","bid_amount"]
[1727463970356,0.62542971,66074.0,66073.0,0.00285394]
[1727463970768,0.62542971,66074.0,66073.0,0.08515394]
[1727463970769,0.35694129,66074.0,66073.0,0.08515394]
[1727463970980,0.31146841,66074.0,66073.0,0.08515393]
[1727463971189,0.26599084,66074.0,66073.0,0.08515393]
[1727463971401,0.26599084,66074.0,66073.0,0.08515392]
[1727463972023,0.31146841,66074.0,66073.0,0.08515392]
[1727463972226,0.31146841,66074.0,66073.0,0.08515391]
[1727463973705,0.26599084,66074.0,66073.0,0.08515391]
[1727463974120,0.26599084,66074.0,66073.0,0.0851539]
[1727463974970,0.31146841,66074.0,66073.0,0.0851539]
[1727463975189,0.26599084,66074.0,66073.0,0.0851539]
[1727463975414,0.32055865,66074.0,66073.0,0.0851539]
[1727463975622,0.32055865,66074.0,66073.0,0.08515389]
[1727463976669,0.16599084,66074.0,66073.0,0.08515389]
[1727463977134,0.16599084,66074.0,66073.0,0.08515388]
[1727463979212,0.16599084,66074.0,66073.0,0.08515387]
[1727463981135,0.024828,66074.0,66073.0,0.46305749]
[1727463981376,0.024828,66074.0,66073.0,0.31171048]
[1727463981600,0.024828,66074.0,66073.0,0.31171047]
[1727463981836,0.024828,66074.0,66073.0,0.46305747]
[1727463982100,0.024828,66074.0,66073.0,0.46305746]
[1727463982343,0.000828,66074.0,66073.0,0.46305746]
[1727463982588,0.000828,66074.0,66073.0,0.55330325]
[1727463982820,0.001828,66074.0,66073.0,0.46305745]
[1727463983056,0.001828,66074.0,66073.0,0.46305744]
[1727463983304,0.000827,66093.0,66091.0,0.151306]
[1727463983305,0.22645098,66092.0,66091.0,0.151306]
[1727463983542,0.22645098,66092.0,66091.0,0.46258258]
[1727463983797,0.000827,66093.0,66092.0,0.234304]
[1727463984020,0.000827,66093.0,66092.0,0.40551295]
[1727463984247,0.000827,66093.0,66092.0,0.41540921]
[1727463984472,0.000827,66093.0,66092.0,0.5220852]
[1727463984703,0.000827,66093.0,66092.0,0.52208517]
[1727463984947,0.000827,66093.0,66092.0,0.56707689]
[1727463985169,0.002827,66093.0,66092.0,0.57107687]
[1727463985405,0.001827,66093.0,66092.0,0.52408512]
[1727463985644,0.001827,66093.0,66092.0,0.52408511]
[1727463985881,0.001827,66093.0,66092.0,0.5240851]
[1727463986355,0.001827,66093.0,66092.0,0.52408509]
[1727463986575,0.002827,66093.0,66092.0,0.52608508]
[1727463987010,0.002827,66093.0,66092.0,0.52608507]
[1727463987269,0.002827,66093.0,66092.0,0.52608506]
[1727463988383,0.002827,66093.0,66092.0,0.52608505]
[1727463988831,0.001827,66093.0,66092.0,0.52408505]
[1727463989041,0.000827,66093.0,66092.0,0.52208505]
[1727463989254,0.000827,66093.0,66092.0,0.52508505]
[1727463989255,0.001827,66093.0,66092.0,0.52508505]
[1727463989483,0.001827,66093.0,66092.0,0.52508504]
[1727463989711,0.002827,66093.0,66092.0,0.52608504]
[1727463990151,0.002827,66093.0,66092.0,0.52608503]
[1727463991461,0.002827,66093.0,66092.0,0.52608502]
[1727463992354,0.002827,66093.0,66092.0,0.52608501]
[1727463992771,0.002827,66093.0,66092.0,0.3518212]
[1727463993248,0.002827,66093.0,66092.0,0.526085]
[1727463993967,0.002827,66093.0,66092.0,0.52608499]
[1727463994193,0.000827,66093.0,66092.0,0.52208499]
[1727463994391,0.001827,66093.0,66092.0,0.52308498]
[1727463994640,0.002827,66093.0,66092.0,0.52508498]
[1727463994861,0.000827,66093.0,66092.0,0.52208498]
[1727463995095,0.000827,66093.0,66092.0,0.52208497]
[1727463995351,0.002827,66093.0,66092.0,0.52508497]
[1727463995588,0.001827,66093.0,66092.0,0.52308497]
[1727463995811,0.001827,66093.0,66092.0,0.34982116]
[1727463996043,0.0463975,66093.0,66092.0,0.19651715]
[1727463996266,0.1976985,66093.0,66092.0,0.09771715]
[1727463996491,0.1986985,66093.0,66092.0,0.09871715]
[1727463996710,0.1986985,66093.0,66092.0,0.00279525]
[1727463997393,0.001827,66093.0,66092.0,0.00279525]
[1727463997581,0.001827,66093.0,66092.0,0.01556388]
[1727463997714,0.001827,66093.0,66092.0,0.00279525]
[1727463997925,0.002827,66093.0,66092.0,0.01756388]
[1727463998355,0.001827,66093.0,66092.0,0.16786788]
[1727463998557,0.002827,66093.0,66092.0,0.01756388]
[1727463998972,0.000827,66093.0,66092.0,0.01456388]
[1727463999398,0.152128,66093.0,66092.0,0.01756388]
[1727463999842,0.152128,66093.0,66092.0,0.01656388]
[1727464000305,0.153128,66093.0,66092.0,0.01756388]
[1727464000756,0.153128,66093.0,66092.0,0.01556388]
[1727464000978,0.154128,66093.0,66092.0,0.01756388]
[1727464001434,0.153128,66093.0,66092.0,0.01656388]
[1727464001894,0.153128,66093.0,66092.0,0.01756388]
[1727464002345,0.000827,66093.0,66092.0,0.01456388]
[1727464002575,0.000827,66093.0,66092.0,0.16886788]
[1727464002793,0.000827,66093.0,66092.0,0.01756387]
[1727464003014,0.000827,66093.0,66092.0,0.16786787]
[1727464003222,0.000827,66093.0,66092.0,0.01656387]
[1727464003444,0.000827,66093.0,66092.0,0.01756387]
[1727464003880,0.000827,66093.0,66092.0,0.16886787]
[1727464004151,0.000827,66093.0,66092.0,0.01556387]
[1727464004359,0.001827,66093.0,66092.0,0.01756387]
[1727464004566,0.001827,66093.0,66092.0,0.01656387]
[1727464004974,0.002827,66093.0,66092.0,0.01756387]
[1727464005203,0.154128,66093.0,66092.0,0.01756387]
[1727464005841,0.002827,66093.0,66092.0,0.01756387]
[1727464006535,0.154128,66093.0,66092.0,0.13198358]
[1727464006768,0.0787574,66093.0,66092.0,0.13198358]
[1727464006998,0.45650938,66093.0,66092.0,0.01756387]
[1727464007235,0.2300584,66093.0,66092.0,0.01756387]
[1727464007421,0.57092909,66093.0,66092.0,0.00479524]
[1727464007657,0.34347811,66093.0,66092.0,0.00379524]
[1727464007873,0.2280584,66093.0,66092.0,0.00179524]
[1727464008076,0.2300584,66093.0,66092.0,0.00479524]
[1727464008492,0.152128,66093.0,66092.0,0.00179524]
[1727464008715,0.159128,66093.0,66092.0,0.00179524]
[1727464009136,0.156128,66093.0,66092.0,0.00179524]
[1727464009355,0.155128,66093.0,66092.0,0.00179524]
[1727464009580,0.162128,66093.0,66092.0,0.00179524]
[1727464009984,0.2388595,66093.0,66092.0,0.00179524]
[1727464010789,0.2318595,66093.0,66092.0,0.00179524]
[1727464011261,0.2348595,66093.0,66092.0,0.00179524]
[1727464011715,0.158128,66093.0,66092.0,0.00179524]
[1727464012130,0.155128,66093.0,66092.0,0.00179524]
[1727464012336,0.152128,66093.0,66092.0,0.00179524]
[1727464012540,0.155128,66093.0,66092.0,0.0146597]
[1727464012789,0.158128,66093.0,66092.0,0.0146597]
[1727464014037,0.152128,66093.0,66092.0,0.0146597]
[1727464014240,0.152128,66093.0,66092.0,0.0156597]
[1727464014444,0.152128,66093.0,66092.0,0.0166597]
[1727464014648,0.152128,66093.0,66092.0,0.0146597]
[1727464014870,0.000827,66093.0,66092.0,0.0146597]
[1727464015113,0.002827,66093.0,66092.0,0.0176597]
[1727464016533,0.002827,66093.0,66092.0,0.1689637]
[1727464016857,0.002827,66093.0,66092.0,0.0176597]
[1727464017030,0.002827,66093.0,66092.0,0.01765969]
[1727464018030,0.002827,66093.0,66092.0,0.16896369]
[1727464018659,0.002827,66093.0,66092.0,0.26336369]
[1727464019088,0.002827,66093.0,66092.0,0.34408934]
[1727464019310,0.002827,66093.0,66092.0,0.34106368]
[1727464019996,0.154128,66093.0,66092.0,0.01765967]
[1727464020234,0.1998002,66093.0,66092.0,0.01765967]
[1727464020739,0.2776002,66093.0,66092.0,0.01765967]
[1727464020996,0.2986002,66093.0,66092.0,0.01465967]
[1727464021253,0.2986002,66093.0,66079.0,0.1287601]
[1727464021254,0.151331,66080.0,66079.0,0.0493601]
[1727464021512,0.62115,66080.0,66079.0,0.0493601]
[1727464021747,0.62115,66080.0,66079.0,0.0123073]
[1727464021990,0.274334,66079.0,66078.0,0.001656]
[1727464024455,0.277334,66079.0,66078.0,0.001656]
[1727464024698,0.281334,66079.0,66078.0,0.001656]
[1727464024939,0.278334,66079.0,66078.0,0.001656]
[1727464025175,0.284334,66079.0,66078.0,0.001656]
[1727464025443,0.45001686,66079.0,66078.0,0.001656]
[1727464025683,0.43901686,66079.0,66078.0,0.001656]
[1727464026168,0.261334,66079.0,66078.0,0.001656]
[1727464026411,0.161334,66079.0,66078.0,0.001656]
[1727464026702,0.151334,66079.0,66078.0,0.001656]
[1727464026943,0.161334,66079.0,66078.0,0.001656]
[1727464027185,0.172334,66079.0,66078.0,0.001656]
[1727464027431,0.2930084,66079.0,66078.0,0.001656]
[1727464027669,0.2950084,66079.0,66078.0,0.001656]
[1727464028152,0.2820084,66079.0,66078.0,0.001656]
[1727464028394,0.155334,66079.0,66078.0,0.001656]
[1727464028635,0.153334,66079.0,66078.0,0.001656]
[1727464028865,0.155334,66079.0,66078.0,0.001656]
[1727464029801,0.155334,66079.0,66078.0,0.01411333]
[1727464030021,0.153334,66079.0,66078.0,0.001656]
[1727464030224,0.153334,66079.0,66078.0,0.01411333]
[1727464030225,0.2281985,66079.0,66078.0,0.01411333]
[1727464030358,0.2281985,66079.0,66078.0,0.001656]
[1727464030619,0.2271985,66079.0,66078.0,0.001656]
[1727464030785,0.2271985,66079.0,66078.0,0.01411333]
[1727464031415,0.151334,66079.0,66078.0,0.01411333]
[1727464031629,0.151326,66083.0,66078.0,0.16544733]
[1727464031847,0.1,66091.0,66078.0,0.01411333]
[1727464032073,0.151323,66084.0,66079.0,0.30569329]
[1727464032285,0.302636,66086.0,66079.0,0.30569329]
[1727464032286,0.151325,66083.0,66079.0,0.01548347]
[1727464032509,0.151325,66083.0,66079.0,0.01245718]
[1727464032961,0.151325,66083.0,66079.0,0.16378918]
[1727464033187,0.453955,66086.0,66080.0,0.15133]
[1727464033421,0.02403175,66085.0,66081.0,0.0124569]
[1727464033639,0.302618,66090.0,66082.0,0.174419]
[1727464033849,0.302624,66089.0,66082.0,0.18687576]
[1727464034061,0.151317,66087.0,66083.0,0.151323]
[1727464034348,0.151318,66086.0,66083.0,0.01245662]
[1727464034575,0.07108392,66087.0,66083.0,0.01245662]
[1727464034802,0.22239992,66087.0,66083.0,0.01245662]
[1727464035018,0.151319,66086.0,66083.0,0.01245662]
[1727464035241,0.08376449,66085.0,66083.0,0.01245662]
[1727464035463,0.08376449,66085.0,66083.0,0.16378062]
[1727464035694,0.08376449,66085.0,66083.0,0.01245662]
[1727464035923,0.08376449,66085.0,66084.0,0.151322]
[1727464036142,0.302618,66090.0,66084.0,0.01238607]
[1727464036363,0.151314,66088.0,66084.0,0.15434719]
[1727464036588,0.003,66087.0,66085.0,0.16370593]
[1727464037052,0.003,66087.0,66085.0,0.01238593]
[1727464037333,0.151317,66086.0,66085.0,0.01238593]
[1727464037813,0.151326,66083.0,66079.0,0.151332]
[1727464038275,0.151326,66083.0,66080.0,0.01238763]
[1727464038706,0.15109703,66083.0,66080.0,0.01238763]
[1727464039598,0.302646,66084.0,66080.0,0.01238763]
[1727464039825,0.151327,66082.0,66079.0,0.151333]
[1727464040040,0.151327,66082.0,66078.0,0.152991]
[1727464040267,0.302646,66084.0,66080.0,0.01242582]
[1727464040501,0.302646,66084.0,66079.0,0.151333]
[1727464040502,0.151325,66083.0,66079.0,0.16375896]
[1727464040734,0.151327,66082.0,66081.0,0.01242568]
[1727464041198,0.151327,66082.0,66079.0,0.151333]
[1727464041650,0.302637,66086.0,66081.0,0.151329]
[1727464041872,0.302637,66086.0,66081.0,0.151327]
[1727464042114,0.151325,66083.0,66082.0,0.01251618]
[1727464042811,0.302641,66085.0,66080.0,0.151331]
[1727464043042,0.151323,66084.0,66082.0,0.01251618]
[1727464043285,0.151322,66085.0,66082.0,0.174419]
[1727464043512,0.302633,66087.0,66083.0,0.01251604]
[1727464043731,0.151321,66085.0,66083.0,0.01251604]
[1727464044172,0.151322,66084.0,66083.0,0.01251604]
[1727464045801,0.151322,66084.0,66079.0,0.151333]
[1727464045802,0.001,66084.0,66079.0,0.151333]
[1727464046045,0.151325,66083.0,66080.0,0.00302631]
[1727464046293,0.151325,66083.0,66080.0,0.151331]
[1727464046991,0.152325,66083.0,66080.0,0.151331]
[1727464047232,0.152325,66083.0,66081.0,0.001656]
[1727464047490,0.151325,66083.0,66081.0,0.001656]
[1727464047729,0.001,66084.0,66081.0,0.152985]
[1727464047730,0.152322,66084.0,66081.0,0.152985]
[1727464047961,0.152325,66083.0,66081.0,0.001656]
[1727464048208,0.153325,66083.0,66081.0,0.001656]
[1727464048445,0.152325,66083.0,66081.0,0.001656]
[1727464049640,0.153325,66083.0,66081.0,0.001656]
[1727464051232,0.151327,66082.0,66081.0,0.001656]
[1727464051475,0.1969235,66082.0,66081.0,0.001656]
[1727464051710,0.2912235,66082.0,66081.0,0.001656]
[1727464053310,0.2932235,66082.0,66081.0,0.001656]
[1727464054023,0.2942235,66082.0,66081.0,0.001656]
[1727464054595,0.2932235,66082.0,66081.0,0.001656]
[1727464056494,0.155327,66082.0,66081.0,0.001656]
[1727464057166,0.153327,66082.0,66081.0,0.001656]
[1727464057843,0.151327,66082.0,66081.0,0.001656]
[1727464069250,0.151327,66082.0,66081.0,0.01540859]
[1727464069480,0.151327,66082.0,66081.0,0.00285307]
[1727464069709,0.151327,66082.0,66081.0,0.01540859]
[1727464069951,0.151327,66082.0,66081.0,0.00285307]
[1727464070407,0.151327,66082.0,66081.0,0.01540573]
[1727464070639,0.151327,66082.0,66081.0,0.00285307]
[1727464070863,0.151327,66082.0,66081.0,0.01540573]
[1727464071081,0.151327,66082.0,66081.0,0.00285307]
[1727464071306,0.000828,66083.0,66081.0,0.01540573]
[1727464071526,0.000828,66083.0,66082.0,0.151327]
[1727464071765,0.000828,66083.0,66082.0,0.34370574]
[1727464071996,0.000828,66083.0,66082.0,0.385802]
[1727464072208,0.000828,66083.0,66082.0,0.34067952]
[1727464072425,0.000828,66083.0,66082.0,0.56790241]
[1727464072648,0.000828,66083.0,66082.0,0.45509621]
[1727464073092,0.001828,66083.0,66082.0,0.45509621]
[1727464073952,0.002828,66083.0,66082.0,0.45509621]
[1727464074375,0.002828,66083.0,66082.0,0.51506664]
[1727464075949,0.002828,66083.0,66082.0,0.62779103]
[1727464079247,0.002828,66083.0,66082.0,0.51506664]
[1727464080574,0.002828,66083.0,66082.0,0.08017914]
[1727464080809,0.0333747,66083.0,66082.0,0.16387952]
[1727464081019,0.002828,66083.0,66082.0,0.01255252]
[1727464081894,0.000828,66083.0,66082.0,0.01255252]
[1727464082104,0.002828,66083.0,66082.0,0.01255252]
[1727464082563,0.000828,66083.0,66082.0,0.01255252]
[1727464082783,0.001828,66083.0,66082.0,0.01255252]
[1727464083255,0.001828,66083.0,66082.0,0.16387952]
[1727464084328,0.002828,66083.0,66082.0,0.16507662]
[1727464084552,0.002828,66083.0,66082.0,0.16810282]
[1727464084972,0.002828,66083.0,66082.0,0.16507662]
[1727464085393,0.002828,66083.0,66082.0,0.16810289]
[1727464085603,0.000828,66083.0,66082.0,0.29277093]
[1727464085851,0.002828,66083.0,66082.0,0.29277093]
[1727464086648,0.000828,66083.0,66082.0,0.29277093]
[1727464086996,0.002828,66083.0,66082.0,0.29277093]
[1727464087456,0.000828,66083.0,66082.0,0.29277093]
[1727464087701,0.001828,66083.0,66082.0,0.29277093]
[1727464088163,0.001828,66083.0,66082.0,0.31832933]
[1727464088392,0.001828,66083.0,66082.0,0.31530324]
[1727464089082,0.000828,66083.0,66082.0,0.31530324]
[1727464089357,0.002828,66083.0,66082.0,0.31530324]
[1727464089821,0.001828,66083.0,66082.0,0.31530324]
[1727464090048,0.002828,66083.0,66082.0,0.31530324]
[1727464092383,0.002828,66083.0,66082.0,0.41020324]
[1727464093317,0.002828,66083.0,66082.0,0.45528765]
[1727464093555,0.002828,66083.0,66082.0,0.34257662]
[1727464094695,0.002828,66083.0,66082.0,0.34423262]
[1727464094830,0.002828,66083.0,66082.0,0.45684137]
[1727464095849,0.002828,66083.0,66082.0,0.34423262]
[1727464096553,0.001828,66083.0,66082.0,0.45862958]
[1727464097481,0.002828,66083.0,66082.0,0.45862958]
[1727464101615,0.002828,66083.0,66082.0,0.57109527]
[1727464102292,0.002828,66083.0,66082.0,0.45862958]
[1727464102516,0.002828,66083.0,66082.0,0.57109125]
[1727464103413,0.002828,66083.0,66082.0,0.47619125]
[1727464103895,0.002828,66083.0,66082.0,0.36372958]
[1727464104119,0.001828,66083.0,66082.0,0.21172825]
[1727464104346,0.001828,66083.0,66082.0,0.18073263]
[1727464104797,0.002828,66083.0,66082.0,0.18973263]
[1727464105221,0.001828,66083.0,66082.0,0.18073263]
[1727464105680,0.002428,66083.0,66082.0,0.18973263]
[1727464106828,0.001428,66083.0,66082.0,0.17573263]
[1727464107305,0.002428,66083.0,66082.0,0.23073479]
[1727464107533,0.001428,66083.0,66082.0,0.24626193]
[1727464107752,0.002428,66083.0,66082.0,0.18775868]
[1727464107971,0.002428,66083.0,66082.0,0.24626193]
[1727464108196,0.001428,66083.0,66082.0,0.24626193]
[1727464108480,0.000428,66083.0,66082.0,0.16975868]
[1727464108640,0.001428,66083.0,66082.0,0.24627433]
[1727464108872,0.001428,66083.0,66082.0,0.17875868]
[1727464109100,0.000428,66083.0,66082.0,0.2372867]
[1727464109348,0.001428,66083.0,66082.0,0.2462867]
[1727464109568,0.001428,66083.0,66082.0,0.24629318]
[1727464109828,0.002428,66083.0,66082.0,0.25326803]
[1727464110317,0.001428,66083.0,66082.0,0.17573263]
[1727464110553,0.001428,66083.0,66082.0,0.03440563]
[1727464110554,0.41495333,66083.0,66082.0,0.03440563]
[1727464110776,0.50935333,66083.0,66082.0,0.03440563]
[1727464111019,0.4579348,66083.0,66082.0,0.02185311]
[1727464111258,0.63235333,66083.0,66082.0,0.02185311]
[1727464111511,0.63035333,66083.0,66082.0,0.00285311]
[1727464111746,0.63035333,66083.0,66082.0,0.01085311]
[1727464111979,0.63535333,66083.0,66082.0,0.00685311]
[1727464112426,0.63535333,66083.0,66082.0,0.00285311]
[1727464112641,0.64435333,66083.0,66082.0,0.00385311]
[1727464112867,0.64435333,66083.0,66078.0,0.001656]
[1727464112868,0.281334,66079.0,66078.0,0.001656]
[1727464113093,0.58255253,66079.0,66078.0,0.001656]
[1727464113322,0.58055253,66079.0,66078.0,0.001656]
[1727464113965,0.58055253,66079.0,66066.0,0.0490109]
[1727464113966,0.005,66076.0,66066.0,0.0490109]
[1727464114201,0.274345,66074.0,66066.0,0.0490109]
[1727464114404,0.350245,66074.0,66059.0,0.22645098]
[1727464114627,0.350145,66074.0,66059.0,0.27618668]
[1727464114949,0.37387419,66074.0,66059.0,0.27618668]
[1727464115337,0.38787419,66074.0,66059.0,0.27618668]
[1727464115550,0.38787419,66074.0,66073.0,0.00205822]
[1727464115551,0.53633579,66074.0,66073.0,0.00205822]
[1727464115770,0.53633579,66074.0,66059.0,0.0497357]
[1727464115771,0.151377,66060.0,66059.0,0.0497357]
[1727464115979,0.52019553,66060.0,66059.0,0.0497357]
[1727464116228,0.52019553,66060.0,66049.0,0.22645098]
[1727464116229,0.1514,66050.0,66049.0,0.22645098]
[1727464116452,0.151402,66049.0,66048.0,0.00135776]
[1727464117318,0.345802,66049.0,66048.0,0.00135776]
[1727464117977,0.346802,66049.0,66048.0,0.00135776]
[1727464118193,0.242602,66049.0,66048.0,0.00135776]
[1727464118839,0.0802,66055.0,66048.0,0.00135776]
[1727464119051,0.151393,66053.0,66052.0,0.17441853]
[1727464119271,0.302782,66055.0,66048.0,0.17577629]
[1727464119485,0.002,66049.0,66048.0,0.17577629]
[1727464120318,0.008,66049.0,66048.0,0.17577629]
[1727464120532,0.002,66049.0,66048.0,0.17577629]
[1727464120940,0.002,66049.0,66048.0,0.32718129]
[1727464121368,0.151392,66054.0,66048.0,0.32718129]
[1727464121573,0.23045098,66053.0,66049.0,0.1514]
[1727464121795,0.004,66053.0,66052.0,0.32581353]
[1727464122007,0.22645098,66060.0,66052.0,0.17441853]
[1727464122210,0.22645098,66060.0,66048.0,0.00135776]
[1727464122211,0.22645098,66060.0,66056.0,0.17441853]
[1727464122636,0.302729,66066.0,66056.0,0.17441853]
[1727464122851,0.151373,66062.0,66060.0,0.17441853]
[1727464123284,0.22645098,66067.0,66060.0,0.17441853]
[1727464123285,0.151361,66067.0,66060.0,0.17441853]
[1727464123489,0.22645098,66066.0,66064.0,0.17441853]
[1727464123703,0.151366,66065.0,66064.0,0.17441853]
[1727464123929,0.151366,66065.0,66060.0,0.151375]
[1727464124132,0.302699,66073.0,66062.0,0.17441853]
[1727464124335,0.302714,66069.0,66063.0,0.14337]
[1727464124539,0.001,66066.0,66063.0,0.14337]
[1727464124945,0.151357,66069.0,66064.0,0.151366]
[1727464125149,0.151356,66070.0,66065.0,0.151365]
[1727464125372,0.170885,66072.0,66066.0,0.17441853]
[1727464125571,0.302709,66070.0,66066.0,0.17441853]
[1727464125944,0.151358,66069.0,66066.0,0.17441853]
[1727464126397,0.302694,66074.0,66066.0,0.17441853]
[1727464126610,0.151355,66070.0,66066.0,0.17441853]
[1727464126819,0.151355,66070.0,66066.0,0.32578153]
[1727464127041,0.302724,66067.0,66060.0,0.151376]
[1727464127292,0.22645098,66061.0,66056.0,0.0493325]
[1727464127537,0.151384,66057.0,66056.0,0.0493325]
[1727464127762,0.151384,66057.0,66048.0,0.00135776]
[1727464127763,0.151402,66049.0,66048.0,0.00135776]
[1727464128236,0.226502,66049.0,66048.0,0.00135776]
[1727464128955,0.349502,66049.0,66048.0,0.00135776]
[1727464129201,0.349502,66049.0,66048.0,0.00235776]
[1727464129416,0.49759875,66049.0,66048.0,0.00235776]
[1727464129877,0.59239875,66049.0,66048.0,0.00235776]
[1727464130448,0.59039875,66049.0,66048.0,0.00235776]
[1727464131415,0.58039875,66049.0,66048.0,0.00135776]
[1727464131629,0.60439875,66049.0,66048.0,0.00135776]
[1727464132276,0.59239875,66049.0,66048.0,0.00135776]
[1727464132518,0.59139875,66049.0,66048.0,0.00135776]
[1727464132746,0.60239875,66049.0,66048.0,0.00135776]
[1727464132954,0.59139875,66049.0,66048.0,0.00135776]
[1727464133164,0.58039875,66049.0,66048.0,0.00135776]
[1727464134545,0.61613694,66049.0,66048.0,0.00135776]
[1727464134981,0.61613694,66049.0,66048.0,0.00235776]
[1727464135220,0.62713694,66049.0,66048.0,0.00235776]
[1727464135462,0.61513694,66049.0,66048.0,0.00135776]
[1727464135915,0.62613694,66049.0,66048.0,0.00235776]
[1727464136152,0.62013694,66049.0,66048.0,0.00235776]
[1727464136394,0.62113694,66049.0,66048.0,0.00135776]
[1727464136636,0.63313694,66049.0,66048.0,0.00235776]
[1727464137117,0.60939875,66049.0,66048.0,0.00235776]
[1727464137820,0.59739875,66049.0,66048.0,0.00235776]
[1727464138030,0.59939875,66049.0,66048.0,0.00135776]
[1727464138517,0.59639875,66049.0,66048.0,0.00235776]
[1727464138727,0.60839875,66049.0,66048.0,0.00235776]
[1727464139372,0.59739875,66049.0,66048.0,0.00135776]
[1727464139552,0.58739875,66049.0,66048.0,0.00135776]
[1727464139792,0.59939875,66049.0,66048.0,0.00235776]
[1727464140220,0.59739875,66049.0,66048.0,0.00235776]
[1727464140473,0.62313802,66049.0,66048.0,0.00235776]
[1727464141122,0.61113802,66049.0,66048.0,0.00135776]
[1727464141554,0.63313802,66049.0,66048.0,0.00235776]
[1727464141799,0.701187,66049.0,66030.0,0.0491373]
[1727464142043,0.54716253,66031.0,66030.0,0.0491373]
[1727464142253,0.151457,66025.0,66024.0,0.001656]
[1727464142470,0.34887553,66025.0,66024.0,0.001656]
[1727464142682,0.44434328,66025.0,66024.0,0.001656]
[1727464143420,0.26992475,66025.0,66024.0,0.001656]
[1727464144743,0.27892475,66025.0,66024.0,0.001656]
[1727464146023,0.55334328,66025.0,66024.0,0.001656]
[1727464146236,0.55834328,66025.0,66024.0,0.001656]
[1727464147227,0.56034328,66025.0,66024.0,0.001656]
[1727464147443,0.64464328,66025.0,66024.0,0.001656]
[1727464147657,0.72414328,66025.0,66024.0,0.001656]
[1727464147902,0.72914328,66025.0,66024.0,0.001656]
[1727464148402,0.73014328,66025.0,66024.0,0.001656]
[1727464148635,0.73314328,66025.0,66024.0,0.001656]
[1727464148863,0.74714328,66025.0,66024.0,0.001656]
[1727464149088,0.73314328,66025.0,66024.0,0.001656]
[1727464149342,0.279478,66016.0,66014.0,0.001656]
[1727464149564,0.62369653,66016.0,66014.0,0.001656]
[1727464150003,0.64744707,66016.0,66014.0,0.001656]
[1727464150524,0.62369653,66016.0,66014.0,0.001656]
[1727464150771,0.63369653,66016.0,66014.0,0.001656]
[1727464151002,0.279485,66013.0,66012.0,0.001656]
[1727464151759,0.281485,66013.0,66012.0,0.001656]
[1727464152256,0.291485,66013.0,66012.0,0.001656]
[1727464152484,0.291485,66013.0,65999.0,0.001656]
[1727464152485,0.281499,66007.0,65999.0,0.001656]
[1727464152740,0.63371753,66007.0,65999.0,0.001656]
[1727464152982,0.75768578,66007.0,65999.0,0.001656]
[1727464153572,0.78144208,66007.0,65999.0,0.001656]
[1727464153816,0.79544208,66007.0,65999.0,0.001656]
[1727464154309,0.79444208,66007.0,65999.0,0.001656]
[1727464155244,0.7952599,66007.0,65999.0,0.001656]
[1727464155709,0.7812599,66007.0,65999.0,0.001656]
[1727464155944,0.84697803,66007.0,65999.0,0.001656]
[1727464156200,0.7952599,66007.0,65999.0,0.001656]
[1727464156954,0.7952599,66007.0,65981.0,0.07833618]
[1727464156955,0.256556,65982.0,65981.0,0.001654]
[1727464157208,0.279556,65982.0,65981.0,0.22810498]
[1727464157420,0.274556,65982.0,65981.0,0.001654]
[1727464157672,0.3934415,65982.0,65981.0,0.001654]
[1727464159583,0.4184415,65982.0,65981.0,0.001654]
[1727464160013,0.4064415,65982.0,65981.0,0.001654]
[1727464160270,0.80531101,65982.0,65981.0,0.001654]
[1727464160513,0.57886003,65982.0,65981.0,0.001654]
[1727464160807,0.58986003,65982.0,65981.0,0.001654]
[1727464161278,0.59486003,65982.0,65981.0,0.001654]
[1727464161748,0.58386003,65982.0,65981.0,0.00245124]
[1727464162218,0.59586003,65982.0,65981.0,0.00245124]
[1727464162452,0.57286003,65982.0,65981.0,0.00245124]
[1727464162910,0.60086003,65982.0,65981.0,0.00245124]
[1727464163138,0.43620482,65982.0,65981.0,0.00245124]
[1727464163386,0.43120482,65982.0,65981.0,0.00245124]
[1727464163612,0.44520482,65982.0,65981.0,0.00245124]
[1727464163859,0.43120482,65982.0,65981.0,0.00245124]
[1727464165020,0.41720482,65982.0,65981.0,0.00245124]
[1727464165250,0.44520482,65982.0,65981.0,0.00245124]
[1727464166147,0.43120482,65982.0,65981.0,0.00245124]
[1727464166354,0.44520482,65982.0,65981.0,0.00245124]
[1727464166558,0.43120482,65982.0,65981.0,0.00245124]
[1727464166886,0.44520482,65982.0,65981.0,0.00245124]
[1727464167103,0.4074415,65982.0,65981.0,0.00245124]
[1727464168471,0.5088415,65982.0,65981.0,0.00245124]
[1727464168718,0.4948415,65982.0,65981.0,0.00245124]
[1727464169345,0.5088415,65982.0,65981.0,0.00245124]
[1727464169571,0.60175932,65982.0,65981.0,0.00245124]
[1727464169781,0.58775932,65982.0,65981.0,0.00245124]
[1727464169987,0.5859415,65982.0,65981.0,0.00245124]
[1727464170202,0.5999415,65982.0,65981.0,0.00245124]
[1727464170422,0.5859415,65982.0,65981.0,0.00245124]
[1727464170647,0.5999415,65982.0,65981.0,0.00245124]
[1727464170860,0.60175932,65982.0,65981.0,0.00245124]
[1727464171290,0.5999415,65982.0,65981.0,0.00245124]
[1727464171723,0.61152326,65982.0,65981.0,0.00245124]
[1727464171937,0.5859415,65982.0,65981.0,0.00245124]
[1727464172643,0.5999415,65982.0,65981.0,0.00245124]
[1727464173499,0.5175415,65982.0,65981.0,0.00245124]
[1727464174361,0.4264415,65982.0,65981.0,0.00245124]
[1727464175258,0.3984415,65982.0,65981.0,0.00245124]
[1727464176366,0.4074415,65982.0,65981.0,0.00245124]
[1727464176800,0.165556,65982.0,65981.0,0.17686977]
[1727464177011,0.014,65982.0,65981.0,0.17686981]
[1727464177226,0.179556,65982.0,65981.0,0.01467913]
[1727464177456,0.014,65982.0,65981.0,0.34065567]
[1727464177668,0.014,65982.0,65981.0,0.3687977]
[1727464177875,0.165556,65982.0,65981.0,0.36879775]
[1727464178089,0.014,65982.0,65981.0,0.19437925]
[1727464178303,0.151555,65983.0,65982.0,0.00018218]
[1727464178510,0.151555,65983.0,65982.0,0.00097963]
[1727464178511,0.1980244,65983.0,65982.0,0.00097963]
[1727464178731,0.1980244,65983.0,65981.0,0.181354]
[1727464178732,0.01102037,65982.0,65981.0,0.181354]
[1727464178952,0.02002037,65982.0,65981.0,0.332912]